[Event "European Women-ch 2023"]
[Site "Petrovac"]
[Date "2023.03.20"]
[Round "3.5"]
[White "Mkrtchian, Lilit"]
[Black "Sandu, Mihaela"]
[Result "1-0"]
[ECO "A13"]
[WhiteElo "2379"]
[BlackElo "2211"]
[Annotator "TA"]
[PlyCount "51"]
[EventDate "2023.03.15"]
[EventType "swiss"]
[EventCountry "MNE"]
[SourceTitle "playchess.com"]
[Source "ChessBase"]
[SourceQuality "1"]
[TimeControl "40/5400+30:1800+30"]

{[%evp 10,51,16,20,22,6,16,0,31,0,0,1,1,0,6,0,3,-5,0,29,12,12,27,23,17,38,33,31,35,24,39,7,94,129,175,234,548,535,1687,1623,1610,1573,29968,12828]} 1. Nf3 {[%emt 0:00:17]} Nf6 {[%emt 0:00:06]} 2. c4 {[%emt 0:00:25]} e6 {[%emt 0:00:28]} 3. g3 {[%emt 0:01:56]} d5 {[%emt 0:00:45]} 4. Bg2 {[%emt 0:00:06]} d4 {[%emt 0:00:44]} 5. d3 {[%emt 0:03:23]} Nc6 {[%emt 0:00:25]} 6. O-O {[%emt 0:03:10]} Bc5 {[%emt 0:00:16] A13: English Opening: 1...e6.} 7. e3 {[%emt 0:13:34] 7.Nbd2 is setting a new trend.} e5 {[%emt 0:02:31]} 8. exd4 {[%emt 0:03:43]} Bxd4 {[%emt 0:00:35] [#] The position is equal.} 9. Nbd2 $146 {[%emt 0:07:18]} (9. Nc3 $5 {[%cal Rf3d4]}) ({Predecessor:} 9. Nc3 O-O 10. Bg5 h6 11. Bxf6 Qxf6 12. Nxd4 Nxd4 13. f4 c6 14. Qd2 Bf5 15. Rae1 exf4 16. Qxf4 Bxd3 17. Qxf6 gxf6 18. Rxf6 {½-½ Muradli,M (2540)-Wei,Y (2722) SCO National Chess Online rapid 2022 (1)}) 9... O-O {[%emt 0:01:15]} 10. Nb3 {[%emt 0:01:21]} Bg4 {[%emt 0:20:57]} 11. h3 {[%emt 0:00:39]} Bxf3 {[%emt 0:00:32]} 12. Qxf3 {[%emt 0:08:13]} a5 {[%emt 0:05:26][%cal Ba7a5,Ba5a4][%mdl 32]} 13. Bg5 {[%emt 0:10:23]} a4 {[%emt 0:07:07]} 14. Nxd4 {[%emt 0:11:26]} Nxd4 {[%emt 0:01:24]} 15. Qxb7 {[%emt 0:01:49]} Rb8 {[%emt 0:00:12]} 16. Qa6 {[%emt 0:01:09]} Rxb2 {[%emt 0:00:49]} 17. Qxa4 {[%emt 0:03:51]} Ne2+ {[%emt 0:11:06][%mdl 64] Discovered Attack} 18. Kh1 {[%emt 0:00:37]} Qxd3 {[%emt 0:00:07]} 19. Bxf6 {[%emt 0:02:57]} gxf6 {[%emt 0:00:05]} 20. Qc6 {[%emt 0:00:39][%csl LRc7,LRf6]} Qc2 {[%emt 0:08:21] [#]} (20... Kg7 $1 $11 {keeps the balance.}) 21. a4 $1 $16 {[%emt 0:02:45][%cal Ba2a4,Ba4a5,Ba5a6,Ba6a7][%mdl 32] aiming for a5.} Rd8 {[%emt 0:16:03] [#]} (21... Kg7 $16 {was necessary.}) 22. a5 $1 $18 {[%emt 0:03:25]} (22. Qxf6 $2 Nxg3+ 23. Kg1 Rd6 $19) 22... Rd2 $2 {[%emt 0:05:18]} (22... Rd6 23. Qf3 (23. Qxc7 Nxg3+ {[%mdl 64] Pin, Double Attack} 24. Kh2 Nxf1+ 25. Rxf1 Rd2 $11) 23... Qxc4) 23. Qxf6 {[%emt 0:05:16]} ({Inferior is} 23. Qxc7 h5 24. Qc6 (24. Bd5 $2 Nxg3+ 25. Kg1 Rxd5 $19 {[%mdl 64] Pin}) 24... Nxg3+ 25. fxg3 Rxg2 26. Rxf6 Rh2+ 27. Kg1 Qg2+ 28. Qxg2 Rbxg2+ 29. Kf1 Rxg3 $11) (23. Be4 Nxg3+ 24. Kg1 Nxe4 25. Rac1 Qd3 26. Qa8+ Kg7) 23... Qxc4 {[%emt 0:10:25][%cal Oe2g3]} 24. Qg5+ {[%emt 0:02:01]} Kf8 {[%emt 0:00:11]} 25. a6 {[%emt 0:03:49] White wants to mate with a7.} Ra2 {[%emt 0:01:05]} 26. a7 {[%emt 0:01:14] Weighted Error Value: White=0.04 (flawless) /Black=0.59} 1-0

[Event "European Women-ch 2023"]
[Site "Petrovac"]
[Date "2023.03.20"]
[Round "3.5"]
[White "Cyfka, Karina"]
[Black "Wagner, Dinara"]
[Result "1/2-1/2"]
[ECO "D38"]
[WhiteElo "2350"]
[BlackElo "2411"]
[Annotator "TA"]
[PlyCount "49"]
[EventDate "2023.03.15"]
[EventType "swiss"]
[EventCountry "MNE"]
[SourceTitle "playchess.com"]
[Source "ChessBase"]
[SourceQuality "1"]
[TimeControl "40/5400+30:1800+30"]

{[%evp 12,34,28,20,10,8,11,8,4,10,23,14,20,0,0,0,13,10,10,9,12,9,21,21,16]} 1. d4 {[%emt 0:00:04]} Nf6 {[%emt 0:00:05]} 2. c4 {[%emt 0:00:18]} e6 {[%emt 0:00:05]} 3. Nf3 {[%emt 0:00:05]} d5 {[%emt 0:00:22]} 4. Nc3 {[%emt 0:00:17]} Bb4 {[%emt 0:00:24]} 5. Qa4+ {[%emt 0:00:55]} Nc6 {[%emt 0:00:09]} 6. e3 {[%emt 0:00:27]} O-O {[%emt 0:00:34]} 7. Bd2 {[%emt 0:00:39]} dxc4 {[%emt 0:00:31] D38: Queen's Gambit Declined: Ragozin Defence (4 Nf3 Bb4).} 8. Bxc4 {[%emt 0:00:16]} Bd6 {[%emt 0:00:06]} 9. Qc2 {[%emt 0:01:36]} e5 {[%emt 0:00:17]} 10. dxe5 {[%emt 0:01:52]} Nxe5 {[%emt 0:00:14]} 11. Nxe5 {[%emt 0:00:06]} Bxe5 {[%emt 0:00:04] The position is equal.} 12. f4 {[%emt 0:01:50]} Bxc3 {[%emt 0:00:21]} 13. Bxc3 {[%emt 0:00:06]} Ng4 {[%emt 0:00:31]} 14. Bd4 {[%emt 0:00:35]} c5 {[%emt 0:00:39]} 15. Bxc5 {[%emt 0:00:41] [#] aiming for Qb3. A strong pair of Bishops.} Re8 $1 {[%emt 0:00:08]} 16. O-O {[%emt 0:01:51] With the idea Rfd1.} Nxe3 {[%emt 0:00:34]} 17. Bxe3 {[%emt 0:01:24]} Rxe3 {[%emt 0:00:08] [#] Not much happened in this game.   Weighted Error Value: White=0.03 (flawless) /Black=0.03 (flawless)} {Predecessor:} 18. Qf2 $146 Re8 19. Rad1 Qf6 20. f5 Re5 21. Rd5 Bxf5 22. Rxe5 Qxe5 23. Bxf7+ Kxf7 24. Qxf5+ Qxf5 25. Rxf5+ {½-½ Xiong,J (2685)-So,W (2778) Chess.com Rapid Wk9 Swiss 2022 (6)} 1/2-1/2

[Event "European Women-ch 2023"]
[Site "Petrovac"]
[Date "2023.03.20"]
[Round "3.5"]
[White "Humbatova, Nazli"]
[Black "Stefanova, Antoaneta"]
[Result "0-1"]
[ECO "C60"]
[WhiteElo "1737"]
[BlackElo "2435"]
[Annotator "TA"]
[PlyCount "76"]
[EventDate "2023.03.15"]
[EventType "swiss"]
[EventCountry "MNE"]
[SourceTitle "playchess.com"]
[Source "ChessBase"]
[SourceQuality "1"]
[TimeControl "40/5400+30:1800+30"]

{[%evp 12,76,43,39,44,27,32,35,43,22,23,21,40,18,2,-117,-63,-96,-100,-90,-81,-100,-106,-102,-42,-84,-84,-75,-83,-112,-58,-134,-139,-539,-542,-877,-876,-980,-962,-1413,-1337,-5577,-204,-189,-114,-126,-101,-158,-152,-361,-353,-410,-362,-356,-361,-361,-345,-310,-318,-388,-384,-423,-418,-579,-571,-550,-539]} 1. e4 {[%emt 0:00:01]} e5 {[%emt 0:00:05]} 2. Nf3 {[%emt 0:00:06]} Nc6 {[%emt 0:00:06]} 3. Bb5 {[%emt 0:00:07]} a6 {[%emt 0:00:24]} 4. Ba4 {[%emt 0:00:06]} Nge7 {[%emt 0:00:43]} 5. c3 {[%emt 0:02:08]} g6 {[%emt 0:13:07]} 6. O-O {[%emt 0:00:23]} Bg7 {[%emt 0:01:34]} 7. d4 {[%emt 0:04:42]} b5 {[%emt 0:02:01] C60: Ruy Lopez: Unusual Black 3rd moves and 3...g6.} 8. Bc2 {[%emt 0:01:20]} exd4 {[%emt 0:02:40]} 9. cxd4 {[%emt 0:00:11]} O-O {[%emt 0:01:24] White is slightly better.} 10. Bg5 {[%emt 0:18:06] 10.h3 is the modern continuation.} h6 {[%emt 0:03:40]} 11. Be3 {[%emt 0:06:06]} f5 {[%emt 0:18:57] [#]} 12. Qc1 $146 {[%emt 0:06:28]} ({Predecessor:} 12. e5 f4 13. Bb3+ Kh8 14. Bc1 d6 15. Nc3 dxe5 16. dxe5 Qxd1 17. Rxd1 Nxe5 18. Nxe5 Bxe5 {0-1 Eludut,Y (1658)-Schoenmakers,V Cappelle Online Blitz op 1st 2021 (4)}) 12... Kh7 {[%emt 0:09:47]} 13. h4 {[%emt 0:14:06]} (13. d5 $11 Nb4 14. Nc3) 13... Nb4 {[%emt 0:09:41]} (13... fxe4 $17 14. Bxe4 d5) 14. exf5 {[%emt 0:06:41]} Nxf5 {[%emt 0:05:52]} 15. h5 {[%emt 0:01:08][%mdl 64] Deflection} gxh5 {[%emt 0:01:57] Black is more active.} (15... Nxc2 {is more complex.} 16. hxg6+ Kh8 17. Qxc2 Bb7) 16. Bxf5+ {[%emt 0:01:19]} Rxf5 {[%emt 0:00:04]} 17. a3 {[%emt 0:02:20]} Nd5 {[%emt 0:05:01]} (17... Nd3 $2 18. Qc2 $18) (17... Rxf3 $1 $17 18. axb4 Rf6) 18. Qc2 {[%emt 0:01:15]} d6 {[%emt 0:00:09]} 19. Nc3 {[%emt 0:06:24]} Nxc3 {[%emt 0:01:56]} 20. bxc3 {[%emt 0:00:05]} Kh8 {[%emt 0:00:23]} (20... Bd7 $1 $17 21. Rfe1 Kg8) 21. Rad1 {[%emt 0:13:09]} ({Better is} 21. Qe4 $15 Bd7 22. Nh4) 21... Bd7 $17 {[%emt 0:05:27]} 22. d5 $2 {[%emt 0:01:18][%mdl 8192] [#]} (22. Qe4 $17) 22... Rxf3 $1 $19 {[%emt 0:03:50][%mdl 512]} 23. gxf3 {[%emt 0:00:09]} (23. Qg6 Qf6) 23... Qh4 {[%emt 0:00:21]} 24. Qe4 {[%emt 0:07:25]} Qh3 {[%emt 0:01:02]} 25. Bf4 {[%emt 0:00:43] Wards off Be5} Bf5 {[%emt 0:03:53]} 26. Qe7 {[%emt 0:00:35]} Qxf3 $2 {[%emt 0:00:47]} (26... Rg8 {( -> ...Be5+)} 27. Qf7 Qxf3) 27. Qe3 {[%emt 0:00:56] [#] Against Be5. White is weak on the light squares} Qg4+ $40 {[%emt 0:02:42][%mdl 128] Black goes for the king.} (27... Be4 $1 $19 {[%csl Ge4][%cal Rf3g2]} 28. Qxf3 Bxf3) 28. Qg3 $17 {[%emt 0:00:26]} Rg8 {[%emt 0:01:20]} (28... Bxc3 29. Qxg4 hxg4 30. Bxh6) 29. Qxg4 {[%emt 0:00:10]} ({White should play} 29. Kh2) 29... Bxg4 {[%emt 0:00:04] A strong pair of Bishops.} (29... hxg4 30. Rfe1 $17) 30. Rb1 {[%emt 0:06:12]} (30. f3 $17 Bh3 31. Rfe1 Bxc3+ {[%mdl 64] Discovered Attack} 32. Kh2 Bxe1 33. Rxe1) 30... Bf5 $19 {[%emt 0:02:03]} (30... Bxc3 31. Kh2 $17) 31. Kh1 {[%emt 0:00:38]} Bxb1 {[%emt 0:01:48]} ({Inferior is} 31... Bxc3 32. Rbc1 Ba5 33. Rg1 $17) 32. Rxb1 {[%emt 0:00:04][%mdl 4096] Endgame KRB-KRB} Rf8 {[%emt 0:00:28]} (32... Bxc3 $2 {perishes.} 33. Be3 $19) 33. Be3 {[%emt 0:00:37]} Bxc3 {[%emt 0:01:22]} 34. Rc1 {[%emt 0:00:29]} Ba5 {[%emt 0:00:06]} 35. Bd4+ {[%emt 0:01:01]} Kh7 {[%emt 0:00:11]} 36. Rg1 {[%emt 0:00:12]} Rf7 {[%emt 0:00:05] Repels Rg7+} 37. Kg2 {[%emt 0:00:35]} Rf5 {[%emt 0:02:30]} 38. Kh2 {[%emt 0:00:43]} Rg5 $1 {[%emt 0:00:07] Dodges Rg7+. A cool game by Stefanova.   Weighted Error Value: White=1.17/Black=0.28 (precise)} ({And not} 38... Rxd5 39. Rg7+ Kh8 40. Bf6 $11) 0-1

[Event "European Women-ch 2023"]
[Site "Petrovac"]
[Date "2023.03.20"]
[Round "3.6"]
[White "Kiolbasa, Oliwia"]
[Black "Brunello, Marina"]
[Result "1-0"]
[ECO "B90"]
[WhiteElo "2406"]
[BlackElo "2346"]
[Annotator "TA"]
[PlyCount "61"]
[EventDate "2023.03.15"]
[EventType "swiss"]
[EventCountry "MNE"]
[SourceTitle "playchess.com"]
[Source "ChessBase"]
[SourceQuality "1"]
[TimeControl "40/5400+30:1800+30"]

{[%evp 12,61,15,0,15,4,62,69,46,51,30,42,102,90,98,119,109,40,110,111,143,136,146,123,142,148,131,138,156,147,140,143,99,124,178,175,179,184,429,461,841,837,822,0,817,787,801,820,783,746,29990,29991]} 1. e4 {[%emt 0:00:03]} c5 {[%emt 0:00:10]} 2. Nf3 {[%emt 0:00:16][%cal Bg1f3,Bf3d4,Bd4b3][%mdl 32]} d6 {[%emt 0:00:06]} 3. d4 {[%emt 0:00:07]} cxd4 {[%emt 0:00:07]} 4. Nxd4 {[%emt 0:00:06]} Nf6 {[%emt 0:00:05]} 5. Nc3 {[%emt 0:00:10]} a6 {[%emt 0:00:04]} 6. h3 {[%emt 0:00:32]} e5 {[%emt 0:00:07]} 7. Nb3 {[%emt 0:00:15]} Be6 {[%emt 0:01:46] 7...Be7 is the modern continuation. B90: Sicilian Najdorf: Unusual White 6th moves, 6 Be3 Ng4 and 6 Be3 e5.} 8. f4 {[%emt 0:00:34]} exf4 {[%emt 0:01:02]} (8... b5 $11) 9. Bxf4 $14 {[%emt 0:01:56]} Be7 {[%emt 0:00:42] White is slightly better.} 10. Qe2 {[%emt 0:01:39]} Nbd7 {[%emt 0:01:30]} 11. O-O-O {[%emt 0:05:18]} Qc7 {[%emt 0:00:06]} (11... O-O $14) 12. Kb1 {[%emt 0:02:31]} O-O {[%emt 0:03:23]} 13. g4 {[%emt 0:04:41][%cal Bg2g4,Bg4g5][%mdl 32]} Ne5 {[%emt 0:00:48] [#]} 14. Nd5 $146 {[%emt 0:00:57]} (14. g5 $16 Nfd7 15. Nd5 Bxd5 16. exd5) ({Predecessor:} 14. g5 Nfd7 15. Qg2 Rac8 16. h4 Nb6 17. Nd4 Nbc4 18. Nd5 Bxd5 19. exd5 Nxb2 20. Kxb2 Qc3+ 21. Kb1 Qb4+ 22. Ka1 Qc3+ 23. Kb1 {½-½ Schnider,G (2407)-Bilobrk,F (2354) Zadar op-A 2016 (7)}) 14... Bxd5 {[%emt 0:09:34]} ({Black should play} 14... Nxd5 $14 15. exd5 Bd7) 15. exd5 $16 {[%emt 0:01:21]} Rfe8 {[%emt 0:00:36]} 16. g5 $1 {[%emt 0:10:54]} Nfd7 {[%emt 0:01:41]} 17. Qf2 {[%emt 0:00:11]} Bf8 {[%emt 0:06:22]} 18. h4 {[%emt 0:05:03]} g6 {[%emt 0:04:08]} 19. h5 {[%emt 0:19:32]} Bg7 {[%emt 0:00:10]} 20. hxg6 {[%emt 0:00:09]} hxg6 {[%emt 0:00:13]} 21. Rh3 {[%emt 0:00:18]} Rac8 {[%emt 0:07:20]} 22. c3 {[%emt 0:05:00] White is more active.} Nb6 {[%emt 0:13:08]} (22... b5 $16 23. Qh4 Qb7) 23. Bg2 {[%emt 0:08:09]} Na4 {[%emt 0:07:12]} 24. Rdh1 {[%emt 0:07:57] Threatens to win with Qh4.} (24. Qh4 Nc4 25. Rdh1 Na3+ 26. Ka1 Nc2+ 27. Kb1 Na3+ 28. Ka1 Nc2+ 29. Kb1 Na3+ $11) 24... Qc4 $2 {[%emt 0:01:59]} (24... Nc4) 25. Rh7 $18 {[%emt 0:06:00]} (25. Qh4 Kf8 $16) 25... Ng4 {[%emt 0:29:32] [#]} (25... Nd3 26. Rxg7+ Kxg7 27. Be5+ Kf8 28. Rh8+ (28. Bxd6+ $2 Kg8 $19) 28... Ke7 29. Qf6+ Kd7 30. Qxd6#) (25... Nxc3+ $142 26. Ka1 (26. bxc3 Ng4 $16) 26... Nxd5 27. Bxe5 Rxe5 28. Bxd5 (28. Nd2 $2 Qf4 $19) 28... Rf5) 26. Qh4 $1 {[%emt 0:02:29] Rh8+ would kill now.} Re1+ {[%emt 0:03:08]} 27. Rxe1 $2 {[%emt 0:02:42]} ({Only move:} 27. Qxe1 $18 Nxc3+ 28. Ka1 Qxf4 29. Qh4 (29. bxc3 Ne3 $16)) 27... Nxc3+ $2 {[%emt 0:05:26][%mdl 8192] [#] A dynamic duo of knights.} (27... Qd3+ $11 28. Ka1 Bxc3) 28. Ka1 $1 {[%emt 0:03:39][%cal Oe1h1] White wants to mate with Rh1!} (28. bxc3 {gets mated.} Qd3+ 29. Kb2 Qxc3+ 30. Ka3 Qb2+ 31. Kb4 Bc3+ 32. Ka4 Qxa2#) 28... Qa4 {[%emt 0:00:55]} 29. Rxg7+ {[%emt 0:01:46]} (29. Qxg4 $2 Qxa2#) 29... Kxg7 {[%emt 0:00:03]} 30. bxc3 {[%emt 0:00:34]} (30. Qxg4 $2 Qxa2#) 30... Rxc3 {[%emt 0:00:04]} 31. Rh1 {[%emt 0:02:50] Weighted Error Value: White=0.49/Black=0.60} 1-0

[Event "European Women-ch 2023"]
[Site "Petrovac"]
[Date "2023.03.20"]
[Round "3.6"]
[White "Gaponenko, Inna"]
[Black "Chelushkina, Irina"]
[Result "1/2-1/2"]
[ECO "B57"]
[WhiteElo "2349"]
[BlackElo "2207"]
[Annotator "TA"]
[PlyCount "54"]
[EventDate "2023.03.15"]
[EventType "swiss"]
[EventCountry "MNE"]
[SourceTitle "playchess.com"]
[Source "ChessBase"]
[SourceQuality "1"]
[TimeControl "40/5400+30:1800+30"]

{[%evp 19,54,36,35,33,32,13,37,32,43,39,33,0,21,5,0,0,5,12,22,11,20,22,14,0,19,0,0,0,0,0,0,0,0,0,0,0,0]} 1. e4 {[%emt 0:00:05]} c5 {[%emt 0:00:12]} 2. Nf3 {[%emt 0:00:09]} Nc6 {[%emt 0:00:08]} 3. Nc3 {[%emt 0:02:10]} d6 {[%emt 0:04:06]} 4. d4 {[%emt 0:03:07]} cxd4 {[%emt 0:08:51]} 5. Nxd4 {[%emt 0:00:02]} e5 {[%emt 0:00:05]} 6. Nf3 {[%emt 0:05:24]} Be7 {[%emt 0:02:37]} 7. Bc4 {[%emt 0:04:09]} Nf6 {[%emt 0:00:06]} 8. Bg5 {[%emt 0:00:53]} O-O {[%emt 0:00:47]} 9. O-O {[%emt 0:22:44]} Bg4 {[%emt 0:04:06]} 10. Bxf6 {[%emt 0:02:35]} Bxf6 {[%emt 0:00:06]} 11. h3 {[%emt 0:00:04] B57: Classical Sicilian: Sozin with 6...Qb6.} Be6 {[%emt 0:01:55]} 12. Nd5 {[%emt 0:05:56]} Rc8 {[%emt 0:06:32]} 13. Bb3 {[%emt 0:27:45] [#] White is slightly better.} g6 $146 {[%emt 0:18:17]} ({Predecessor:} 13... Bxd5 14. Qxd5 Qc7 15. c3 Ne7 16. Qd3 Ng6 17. g3 Rfd8 18. Nh2 Qd7 19. Kg2 Nf8 {1-0 Ozer,O (2323)-Buyukasik,D (2235) TUR-chT 1st League 2022 (6.1)}) 14. Nxf6+ {[%emt 0:13:13]} Qxf6 {[%emt 0:00:02]} 15. Qxd6 {[%emt 0:00:07]} Rcd8 {[%emt 0:00:35] The position is equal.} (15... Rfd8 $5 {[%cal Rd8d6]} 16. Qa3 Bxh3 $11) 16. Qc5 {[%emt 0:05:46]} Bxh3 $1 {[%emt 0:00:13][%cal Oc6d4][%mdl 64] [#] Deflection} 17. Bd5 {[%emt 0:00:44] Black should prevent Bxc6.} Bg4 {[%emt 0:02:18]} 18. Nh2 {[%emt 0:00:11]} ({Much weaker is} 18. Bxc6 Bxf3 19. gxf3 Rc8 $17) 18... Bd7 {[%emt 0:18:37]} 19. c3 {[%emt 0:00:11] Inhibits Nd4.} h5 {[%emt 0:02:19]} 20. Rfd1 {[%emt 0:02:00]} Kg7 {[%emt 0:02:00]} 21. Rd3 {[%emt 0:00:40]} b6 {[%emt 0:00:53]} 22. Qe3 {[%emt 0:00:05]} Ne7 {[%emt 0:00:35]} 23. Rad1 {[%emt 0:00:22] [#] Bb3 is the strong threat.} Bc8 {[%emt 0:01:29]} 24. Bb3 {[%emt 0:03:00]} Nc6 {[%emt 0:02:17]} 25. Bd5 {[%emt 0:00:09]} Ne7 {[%emt 0:00:40]} 26. Bb3 {[%emt 0:00:01]} Nc6 {[%emt 0:00:08]} 27. Bd5 {[%emt 0:00:04]} Ne7 {[%emt 0:00:04] Weighted Error Value: White=0.06 (flawless) /Black=0.05 (flawless)} 1/2-1/2

[Event "European Women-ch 2023"]
[Site "Petrovac"]
[Date "2023.03.20"]
[Round "3.6"]
[White "Gueci, Tea"]
[Black "Paasikangas, Johanna"]
[Result "1/2-1/2"]
[ECO "B06"]
[WhiteElo "2227"]
[BlackElo "2115"]
[Annotator "TA"]
[PlyCount "146"]
[EventDate "2023.03.15"]
[EventType "swiss"]
[EventCountry "MNE"]
[SourceTitle "playchess.com"]
[Source "ChessBase"]
[SourceQuality "1"]
[TimeControl "40/5400+30:1800+30"]

{[%evp 15,146,13,39,35,54,52,58,41,53,29,16,14,36,24,35,31,81,77,79,68,105,82,81,74,76,67,81,74,74,73,85,95,119,106,130,108,131,0,0,-32,-25,-189,-179,-168,-183,-178,-175,-212,-204,-177,-36,-162,-153,-165,-156,-197,-179,-206,-157,-224,-163,-253,-250,-276,-133,-127,-85,-87,-87,-127,-125,-118,-121,-111,-111,-95,-108,-101,-112,-242,-233,-245,-231,-243,-240,-232,-258,-259,0,0,0,0,0,0,0,-8,-8,-8,0,-8,-8,-8,-8,-8,-8,-8,-8,-8,-8,-8,-8,-8,-8,-8,-8,-8,-8,-8,-8,-8,-8,-8,-8,-8,-8,-8,0,-8,-8,-8,-8,-8,-8]} 1. e4 {[%emt 0:00:03]} g6 {[%emt 0:00:08]} 2. d4 {[%emt 0:00:05]} Bg7 {[%emt 0:00:07]} 3. Nc3 {[%emt 0:00:11]} d6 {[%emt 0:01:04]} 4. Be3 {[%emt 0:00:18]} c6 {[%emt 0:01:03]} 5. Qd2 {[%emt 0:00:18]} Nd7 {[%emt 0:04:13]} 6. f3 {[%emt 0:00:30]} h5 {[%emt 0:06:24]} 7. h4 {[%emt 0:01:53]} b5 {[%emt 0:07:43]} 8. Nh3 {[%emt 0:02:26]} Nb6 {[%emt 0:02:23]} 9. Ng5 {[%emt 0:04:10] B06: Modern Defence.} Nc4 {[%emt 0:05:10]} 10. Bxc4 {[%emt 0:03:17]} bxc4 {[%emt 0:00:06]} 11. O-O-O {[%emt 0:30:44][%cal Oe4e5] [#] White is slightly better.} Qa5 $146 {[%emt 0:13:05]} ({Predecessor:} 11... Rb8 12. Rde1 Qa5 13. a3 Qb6 14. Nd1 Nf6 15. c3 Qa5 16. Bf2 Nd7 17. Re2 c5 {0-1 Predke,A (2129)-Pavlovski,Y (2271) Volga Rating 2006 (4)}) 12. Kb1 {[%emt 0:03:33][%cal Oe4e5]} (12. e5 $5 {[%cal Re5d6]}) 12... Rb8 {[%emt 0:02:42]} 13. Ka1 {[%emt 0:02:05]} Nh6 {[%emt 0:05:20]} 14. Rb1 {[%emt 0:07:39]} d5 {[%emt 0:06:03]} 15. Rhe1 {[%emt 0:06:45]} dxe4 {[%emt 0:08:45]} (15... Rb7 $14) 16. Ngxe4 $16 {[%emt 0:03:10] A dynamic duo of knights.} Nf5 {[%emt 0:02:33]} 17. Bf4 $36 {[%emt 0:04:11][%mdl 2048] Black is under pressure.} Rb4 {[%emt 0:06:38][%cal Oe8g8]} 18. Nd6+ {[%emt 0:03:50]} Nxd6 {[%emt 0:00:16][%mdl 64] Remove Defender} 19. Bxd6 {[%emt 0:00:03]} Rb7 {[%emt 0:00:10]} 20. Be5 {[%emt 0:01:44]} O-O {[%emt 0:02:20]} 21. Bxg7 {[%emt 0:03:08]} Kxg7 {[%emt 0:00:19]} 22. Re5 {[%emt 0:00:14]} Qd8 {[%emt 0:02:12]} 23. Rc5 {[%emt 0:04:44][%csl LRc4,LRc6] White is more active.} e5 {[%emt 0:06:49][%mdl 64] Discovered Attack} 24. Rxe5 {[%emt 0:02:02]} ({Much less strong is} 24. Rxc4 Rd7 $14) 24... Qxh4 {[%emt 0:00:15]} 25. Ne4 {[%emt 0:01:31]} Rd7 {[%emt 0:03:32] Black is weak on the dark squares} 26. c3 {[%emt 0:05:32]} (26. Rc5 $16) 26... Rd5 $11 {[%emt 0:00:55]} 27. g3 {[%emt 0:01:15]} Qd8 {[%emt 0:01:40]} 28. Qf4 $2 {[%emt 0:00:29]} (28. f4 $11 {and White stays safe.}) 28... f6 $19 {[%emt 0:00:57]} 29. Rxd5 {[%emt 0:00:41]} cxd5 {[%emt 0:00:18]} 30. Nc5 {[%emt 0:00:51]} Re8 {[%emt 0:00:34][%cal Bf8e8,Be8e2,Be2d2][%mdl 32] Against Re1} 31. Qd2 {[%emt 0:04:17]} Qe7 {[%emt 0:00:45] Prevents Re1} 32. b3 {[%emt 0:03:58]} Bf5 {[%emt 0:02:05]} (32... Qe3 $19 33. Qxe3 Rxe3 34. bxc4 dxc4) 33. Rf1 {[%emt 0:00:34]} (33. Rg1 $1 $15) 33... Qe2 {[%emt 0:01:33]} 34. Qxe2 {[%emt 0:00:35]} Rxe2 {[%emt 0:00:07]} 35. bxc4 {[%emt 0:00:25]} dxc4 $17 {[%emt 0:00:06][%mdl 4096] Endgame KRB-KRN} 36. Rd1 {[%emt 0:00:38]} Bc2 {[%emt 0:01:37]} 37. Rc1 {[%emt 0:00:03]} (37. Rh1 $17) 37... Kf7 {[%emt 0:00:18]} 38. d5 {[%emt 0:00:49]} (38. Rh1 $142) 38... Ke7 $19 {[%emt 0:03:52]} 39. Ne6 {[%emt 0:00:17]} Rd2 {[%emt 0:01:55]} (39... Bd3 $19 {is more deadly. ...Rg2 is the strong threat.} 40. Rg1 Kd6) 40. Nd4 $17 {[%emt 0:00:31]} Bd3 {[%emt 0:00:00] Threatens to win with ...Rg2.} 41. Re1+ {[%emt 0:11:00]} Kd6 {[%emt 0:02:30][%cal Od2g2] Hoping for ...Rg2!} 42. Re6+ {[%emt 0:01:40]} Kxd5 {[%emt 0:00:09]} 43. Ra6 {[%emt 0:00:13]} Rg2 {[%emt 0:04:15]} 44. Ra5+ {[%emt 0:03:38]} Kd6 {[%emt 0:00:07]} 45. Ra6+ {[%emt 0:00:16]} Kc7 $1 {[%emt 0:02:10]} 46. Rxa7+ {[%emt 0:02:43]} Kb6 {[%emt 0:00:12]} 47. Rh7 {[%emt 0:03:07]} (47. Rf7 $17) 47... Rxg3 $19 {[%emt 0:00:51]} 48. a4 {[%emt 0:00:18] [#]} Rg2 {[%emt 0:03:22]} 49. Rh8 {[%emt 0:03:13]} Bc2 {[%emt 0:04:46]} 50. Rb8+ {[%emt 0:03:27]} Kc7 {[%emt 0:01:10]} 51. Rb4 {[%emt 0:00:05] [#]} h4 $2 {[%emt 0:00:42]} (51... Bb3 $1 $19 {...g5 would be deadly.} 52. Kb1 Ba2+ 53. Ka1 Bb3) 52. Nxc2 $11 {[%emt 0:01:19] The position is equal.} Rxc2 {[%emt 0:01:12]} 53. Rxc4+ {[%emt 0:00:04] KR-KR} Kb6 {[%emt 0:00:10]} 54. Rxh4 {[%emt 0:01:03]} Rxc3 {[%emt 0:00:07]} 55. Rh6 {[%emt 0:01:41]} Rxf3 {[%emt 0:00:11] aiming for ...g5.} 56. Rxg6 {[%emt 0:00:02]} Ka5 {[%emt 0:00:15]} 57. Kb2 {[%emt 0:00:14]} Kxa4 {[%emt 0:00:07]} 58. Kc2 {[%emt 0:00:09]} Kb4 {[%emt 0:00:26]} 59. Kd2 {[%emt 0:00:06]} Kc4 {[%emt 0:00:22]} 60. Ke2 {[%emt 0:00:34]} Rf5 {[%emt 0:00:08]} 61. Rg8 {[%emt 0:00:42]} Kd4 {[%emt 0:00:22]} 62. Ra8 {[%emt 0:01:08]} Rb5 {[%emt 0:01:30]} 63. Re8 {[%emt 0:01:58]} Rb3 {[%emt 0:00:49]} 64. Kf2 {[%emt 0:00:16]} Kd5 {[%emt 0:00:12]} 65. Re7 {[%emt 0:00:26]} Kd6 {[%emt 0:00:14]} 66. Re8 {[%emt 0:00:11]} Rb5 {[%emt 0:01:02]} 67. Kf3 {[%emt 0:00:35]} Rf5+ {[%emt 0:00:39]} 68. Kg4 {[%emt 0:01:46]} Re5 {[%emt 0:03:48]} 69. Ra8 {[%emt 0:00:10]} Ke6 {[%emt 0:00:21]} 70. Re8+ {[%emt 0:01:03]} Kd6 {[%emt 0:00:25]} 71. Ra8 {[%emt 0:00:10]} Ke7 {[%emt 0:00:05]} 72. Kf4 {[%emt 0:00:26]} Kf7 {[%emt 0:00:14]} 73. Rb8 {[%emt 0:01:02]} Kg6 {[%emt 0:03:02] White happily takes the draw.   Weighted Error Value: White=0.23 (precise) /Black=0.23 (precise)} 1/2-1/2